bitfinex-derivatives/quotes_ETHF0:USTF0_20260223
["timestamp","ask_amount","ask_price","bid_price","bid_amount"]
[1771815004490,4.09442881,1863.6,1862.6,4.05405643]
[1771815005689,4.09442881,1863.9,1862.6,4.05405643]
[1771815005884,4.09442881,1863.7,1862.6,4.06405643]
[1771815009691,0.00510828,1864.0,1863.0,3.85002125]
[1771815011492,0.00510828,1864.0,1863.2,3.85002125]
[1771815011692,4.00534903,1864.4,1863.2,3.85002125]
[1771815012695,4.00959849,1864.4,1863.2,3.85002125]
[1771815019996,4.00959849,1864.4,1863.2,4.23202125]
[1771815024906,4.00959849,1864.4,1863.1,0.26844]
[1771815024907,0.00424946,1864.4,1863.4,3.8845237]
[1771815025105,4.29369554,1864.4,1863.4,3.8845237]
[1771815028909,4.29369554,1864.4,1863.4,4.2665237]
[1771815030315,4.29369554,1864.4,1863.3,3.8845237]
[1771815031408,4.29369554,1864.4,1863.5,3.8845237]
[1771815037519,0.00424946,1864.4,1863.5,3.8845237]
[1771815037719,4.29369554,1864.4,1863.5,3.8845237]
[1771815040417,0.00424946,1864.4,1863.5,3.8845237]
[1771815040621,4.01011413,1864.6,1863.7,3.88911108]
[1771815041627,4.01425102,1864.6,1863.7,3.88911108]
[1771815047833,4.01425102,1864.6,1863.5,3.88911108]
[1771815050627,4.01011413,1864.5,1862.6,3.9044865]
[1771815050834,4.01011413,1864.3,1862.6,3.9044865]
[1771815051029,4.01011413,1864.3,1863.1,3.88911108]
[1771815051233,4.01011413,1864.3,1863.3,3.88911108]
[1771815051729,4.01011413,1864.5,1863.5,3.88911108]
[1771815061938,9.38811413,1864.5,1863.0,3.88911108]
[1771815062143,4.01011413,1864.4,1863.0,4.27111108]
[1771815063940,4.01011413,1864.2,1863.0,3.88911108]
[1771815066248,4.01011413,1863.9,1862.6,3.8944865]
[1771815066836,4.01011413,1863.9,1863.0,0.01]
[1771815067641,4.01011413,1863.9,1863.0,3.89911108]
[1771815073645,11.845,1864.2,1863.0,3.89911108]
[1771815073646,4.10815437,1864.0,1863.0,3.89911108]
[1771815073845,4.10815437,1863.9,1863.0,0.01]
[1771815075051,4.10815437,1863.9,1863.0,4.25560066]
[1771815076450,3.87479936,1863.8,1863.0,0.01]
[1771815082454,3.87479936,1863.7,1863.0,0.01]
[1771815083553,4.14315936,1863.7,1863.0,0.01]
[1771815083754,3.87479936,1863.5,1862.6,3.92414687]
[1771815088358,3.87479936,1864.1,1862.6,3.92414687]
[1771815090049,3.87479936,1864.2,1863.0,3.91877145]
[1771815090657,3.87479936,1864.2,1863.1,3.91877145]
[1771815096159,3.87479936,1864.4,1863.1,3.91877145]
[1771815099461,3.87479936,1864.4,1863.3,3.82958478]
[1771815100466,3.87479936,1864.4,1863.5,3.82958478]
[1771815101867,3.92737899,1864.5,1863.7,3.82958478]
[1771815106770,0.00413689,1864.6,1863.9,3.82958478]
[1771815107070,3.92737899,1864.9,1863.9,3.82958478]
[1771815108268,3.93311236,1864.9,1863.9,3.82958478]
[1771815117491,3.93311236,1864.9,1864.1,3.82958478]
[1771815117785,3.93311236,1864.9,1864.1,3.83412542]
[1771815121082,3.93311236,1864.9,1864.1,0.00454064]
[1771815121288,3.93311236,1864.9,1864.1,3.83412542]
[1771815124479,5.378,1864.8,1863.9,3.82958478]
[1771815124679,3.92737899,1864.7,1863.8,3.82958478]
[1771815125382,3.92737899,1864.7,1863.6,3.82958478]
[1771815125587,3.92737899,1864.7,1863.6,3.83349003]
[1771815126590,3.92737899,1864.6,1863.6,3.83349003]
[1771815127091,3.92737899,1864.6,1863.6,3.84349003]
[1771815130492,3.92737899,1864.6,1863.8,3.93939621]
[1771815134891,4.0557675,1864.8,1863.8,3.93939621]
[1771815143297,4.0557675,1864.8,1863.9,3.92331684]
[1771815144201,3.96978476,1864.9,1863.9,3.92331684]
[1771815144401,3.96978476,1864.9,1864.1,3.92331684]
[1771815145211,3.96405139,1864.8,1864.1,3.92331684]
[1771815152813,3.96405139,1864.8,1863.8,3.92331684]
[1771815155817,3.96405139,1864.7,1863.8,3.92331684]
[1771815157712,3.96405139,1864.4,1863.6,0.01390525]
[1771815157918,3.96405139,1864.4,1863.6,3.93722209]
[1771815158422,3.96405139,1864.4,1862.7,20.85554789]
[1771815158423,3.6809211,1864.3,1863.1,3.77162329]
[1771815158622,3.6809211,1863.9,1863.1,3.77162329]
[1771815159013,4.4947573,1864.5,1862.8,3.77162329]
[1771815159014,3.6809211,1863.5,1862.8,3.77162329]
[1771815159214,3.6809211,1863.5,1862.3,3.77162329]
[1771815159413,3.6870441,1863.5,1862.3,3.77854392]
[1771815174423,3.6870441,1863.5,1862.5,3.77162329]
[1771815174727,3.6870441,1863.5,1862.6,3.77162329]
[1771815174922,0.006123,1863.5,1862.6,3.77162329]
[1771815176327,3.6809211,1864.1,1862.8,3.77162329]
[1771815176624,3.6809211,1864.1,1862.7,7.08692453]
[1771815176625,3.6809211,1864.8,1863.2,3.77162329]
[1771815177021,3.6809211,1864.8,1863.6,3.77162329]
[1771815177226,3.68562958,1864.8,1863.6,3.77162329]
[1771815180135,0.00470848,1864.8,1863.8,3.77162329]
[1771815180326,3.6809211,1865.1,1864.0,3.77162329]
[1771815181430,3.68691768,1865.1,1864.0,3.77162329]
[1771815185029,0.00599658,1865.1,1864.2,3.77162329]
[1771815185242,3.6809211,1865.4,1864.4,3.77162329]
[1771815186233,3.68733137,1865.4,1864.4,3.77162329]
[1771815195541,3.64238122,1865.2,1864.1,3.46607778]
[1771815197942,3.64238122,1865.3,1864.1,3.46607778]
[1771815199332,3.64238122,1865.3,1864.1,3.47607778]
[1771815201944,3.64238122,1865.2,1864.1,3.47607778]
[1771815202437,9.02038122,1865.0,1864.1,0.01]
[1771815202641,3.64238122,1864.8,1863.8,0.00690549]
[1771815202839,13.33137,1865.3,1863.8,0.00690549]
[1771815202840,3.64238122,1864.5,1863.8,0.00690549]
[1771815204443,3.64238122,1864.4,1863.8,0.00690549]
[1771815204841,3.64238122,1864.4,1863.5,3.46607778]
[1771815206142,3.64238122,1864.4,1863.5,3.47150974]
[1771815207637,9.02038122,1864.4,1863.5,0.00543196]
[1771815207837,3.64238122,1864.3,1863.5,0.00543196]
[1771815211147,3.64238122,1864.1,1863.5,0.00543196]
[1771815221249,3.91069122,1864.1,1863.5,0.00543196]
[1771815222745,3.91069122,1864.1,1863.5,3.42169346]
[1771815223244,3.91069122,1864.1,1863.5,0.00543196]
[1771815226247,3.91069122,1864.1,1863.5,3.42169346]
[1771815229353,3.91069122,1864.1,1863.5,0.00543196]
[1771815229559,3.69607578,1863.8,1863.2,3.4162615]
[1771815230060,3.69607578,1863.6,1862.4,3.4162615]
[1771815230559,3.69607578,1863.6,1862.4,3.42181221]
[1771815230560,3.70031412,1863.6,1862.4,3.42181221]
[1771815234262,3.69607578,1863.4,1862.4,3.42181221]
[1771815234864,3.70031412,1863.6,1862.4,3.42181221]
[1771815236862,3.69607578,1864.0,1862.6,3.4162615]
[1771815237869,3.70160298,1864.0,1862.6,3.4162615]
[1771815242170,3.70160298,1864.0,1862.8,3.4162615]
[1771815244477,3.69607578,1863.8,1862.8,3.4162615]
[1771815249177,3.69607578,1863.8,1862.5,3.39825634]
[1771815249388,3.68980945,1863.6,1862.5,3.39825634]
[1771815252288,3.68980945,1863.6,1862.5,3.40825634]
[1771815254787,3.68980945,1863.2,1861.7,3.39825634]
[1771815254985,3.68980945,1863.2,1861.2,0.36211188]
[1771815254986,3.68980945,1863.1,1861.8,3.39825634]
[1771815255879,3.68980945,1863.1,1861.8,3.4045175]
[1771815256283,3.71979149,1863.0,1861.8,3.4045175]
[1771815257389,3.71979149,1862.9,1861.8,3.4045175]
[1771815257591,3.71979149,1862.8,1861.8,3.4045175]
[1771815257790,5.37,1862.6,1861.8,0.00626116]
[1771815257987,3.71979149,1862.5,1861.8,0.00626116]
[1771815258491,3.71979149,1862.5,1861.8,3.48008321]
[1771815260291,3.71979149,1862.5,1861.8,0.00626116]
[1771815262589,3.71979149,1862.5,1861.8,3.48008321]
[1771815264989,3.71979149,1862.5,1861.8,0.00626116]
[1771815265291,3.71979149,1862.5,1861.5,3.47382205]
[1771815266189,9.08979149,1862.4,1861.5,0.00496352]
[1771815266387,3.71979149,1862.3,1861.5,0.00496352]
[1771815266690,3.71979149,1862.3,1861.5,3.47878557]
[1771815267487,3.71979149,1862.3,1861.5,0.00496352]
[1771815267688,3.71979149,1862.3,1861.5,3.47878557]
[1771815267988,3.71979149,1862.3,1861.5,0.00496352]
[1771815270498,3.71979149,1862.0,1860.8,3.47382205]
[1771815270889,9.08979149,1862.0,1860.8,3.47382205]
[1771815271086,3.71979149,1861.9,1860.8,3.47382205]
[1771815271396,3.71979149,1861.9,1860.8,3.47764864]
[1771815277593,3.71979149,1862.5,1861.0,3.47382205]
[1771815277791,3.71979149,1862.5,1861.3,3.47382205]
[1771815278094,0.00558016,1862.6,1861.7,3.47382205]
[1771815278394,3.53003321,1862.6,1861.7,3.47382205]
[1771815283996,0.00558016,1862.6,1861.9,3.69950618]
[1771815289904,3.52445305,1862.8,1861.9,3.69950618]
[1771815290897,3.52445305,1863.5,1861.9,3.69950618]
[1771815291104,0.00426377,1862.8,1861.9,3.69950618]
[1771815291403,3.52871682,1862.8,1861.9,3.69950618]
[1771815297014,3.52871682,1862.8,1861.4,3.69950618]
[1771815303810,3.52871682,1862.8,1861.5,0.26868]
[1771815304017,3.52871682,1862.8,1861.6,3.69950618]
[1771815306117,3.52871682,1862.8,1861.8,3.69950618]
[1771815306917,0.00426377,1862.8,1862.0,3.69950618]
[1771815307320,3.52445305,1863.2,1862.1,3.96809618]
[1771815308320,3.52921872,1863.2,1862.1,3.96809618]
[1771815308810,3.52921872,1863.2,1862.1,3.69950618]
[1771815311811,0.00476567,1863.2,1862.3,3.45438563]
[1771815312213,4.4574866,1864.0,1862.7,3.45438563]
[1771815312214,3.44373981,1863.8,1862.7,3.45438563]
[1771815312413,3.44373981,1863.8,1862.9,3.45438563]
[1771815313210,3.45025079,1863.8,1862.9,3.45438563]
[1771815313815,3.45025079,1863.8,1862.4,3.45438563]
[1771815316220,3.34395027,1863.7,1862.4,3.45438563]
[1771815317116,3.34395027,1863.6,1862.4,3.45438563]
[1771815317318,3.34395027,1863.5,1862.4,3.45438563]
[1771815319823,3.34395027,1863.5,1862.3,0.00421503]
[1771815320020,3.34395027,1863.3,1862.3,3.3499961]
[1771815321728,3.34395027,1863.3,1862.3,3.3599961]
[1771815325532,3.34395027,1863.2,1862.3,0.01421503]
[1771815328634,3.34395027,1863.1,1862.0,3.34578107]
[1771815329735,3.34395027,1863.1,1862.0,3.3516675]
[1771815329936,3.34395027,1863.0,1862.0,3.3516675]
[1771815334242,15.58684027,1863.0,1862.0,0.00588643]
[1771815334445,0.26853,1862.6,1861.1,3.34578107]
[1771815335338,3.34395027,1862.7,1861.3,3.34578107]
[1771815338645,3.61246027,1862.7,1861.3,3.34578107]
[1771815339345,3.34395027,1862.7,1861.3,3.72778107]
[1771815340749,3.34395027,1862.7,1861.3,3.34578107]
[1771815345344,3.5670692,1862.6,1861.3,3.34578107]
[1771815346749,3.5670692,1862.5,1861.3,3.34578107]
[1771815351555,3.5670692,1862.3,1861.3,3.34578107]
[1771815351744,3.57304248,1862.3,1861.3,3.34578107]
[1771815355348,3.57304248,1862.3,1861.2,3.59546212]
[1771815355349,3.5670692,1862.1,1861.2,3.59546212]
[1771815355550,3.5670692,1862.0,1861.1,0.00530689]
[1771815355955,3.5670692,1861.9,1861.1,0.00530689]
[1771815357149,3.8357292,1861.7,1860.4,3.59546212]
[1771815358258,3.8357292,1861.7,1860.4,3.599914]
[1771815360456,3.5670692,1861.7,1860.6,3.59546212]
[1771815361463,3.5670692,1861.5,1860.6,3.59546212]
[1771815366062,3.5670692,1861.8,1860.6,3.59546212]
[1771815366258,3.5670692,1861.7,1860.6,3.59546212]
[1771815366461,3.5670692,1861.6,1860.6,3.59546212]
[1771815366661,3.5670692,1861.4,1860.6,3.59546212]
[1771815366956,3.5670692,1861.4,1860.6,3.60546212]
[1771815370356,3.5670692,1861.4,1860.6,3.57163548]
[1771815371261,3.57852909,1861.3,1860.6,3.57163548]
[1771815371461,3.57852909,1861.3,1860.6,0.01]
[1771815374966,3.57852909,1861.2,1860.6,0.01]
[1771815375261,3.57852909,1861.1,1860.4,0.00445188]
[1771815375461,3.4953924,1860.8,1859.4,3.40949311]
[1771815376463,3.50169498,1860.8,1859.4,3.41362472]
[1771815377764,0.00630258,1860.8,1859.6,3.40949311]
[1771815377968,3.4953924,1861.2,1859.6,3.40949311]
[1771815378164,3.4953924,1861.2,1859.8,3.40949311]
[1771815378365,3.4953924,1861.0,1859.8,3.40949311]
[1771815378873,0.00401251,1861.0,1859.8,3.40949311]
[1771815380167,3.49940491,1861.0,1859.8,3.40949311]
[1771815380366,3.4953924,1860.8,1859.8,3.40949311]
[1771815382274,3.4953924,1860.7,1859.8,3.40949311]
[1771815386473,3.4953924,1860.9,1859.8,3.40949311]
[1771815391377,3.4953924,1860.8,1859.9,3.40949311]
[1771815399586,3.51926452,1860.6,1859.9,3.40949311]
[1771815402183,3.95484006,1860.7,1859.6,3.3289504]
[1771815402184,3.51926452,1860.4,1859.6,3.3289504]
[1771815402392,3.51926452,1860.1,1859.4,3.33308201]
[1771815403287,3.51926452,1860.4,1859.8,3.3289504]
[1771815403690,3.51926452,1860.4,1859.6,3.3289504]
[1771815405391,7.47410458,1860.0,1859.4,0.00413161]
[1771815405690,3.51926452,1859.9,1859.4,3.33308201]
[1771815405884,3.51926452,1860.3,1859.6,3.3289504]
[1771815408895,3.51926452,1860.2,1859.5,3.3289504]
[1771815412600,3.51926452,1860.2,1859.6,3.3289504]
[1771815416904,3.51926452,1860.2,1859.5,3.3289504]
[1771815420502,3.51926452,1860.2,1859.4,3.33308201]
[1771815421507,3.51926452,1860.0,1859.4,3.33308201]
[1771815422009,4.22365006,1860.6,1859.6,3.3289504]
[1771815422010,3.51926452,1860.4,1859.6,3.3289504]
[1771815423411,3.51926452,1860.0,1859.4,3.33308201]
[1771815426710,3.51926452,1860.0,1859.4,0.00413161]
[1771815432613,3.51926452,1860.0,1859.4,3.44809901]
[1771815433122,3.41722744,1860.3,1859.5,3.4439674]
[1771815433522,3.41722744,1860.5,1859.9,3.4439674]
[1771815433819,3.41722744,1860.7,1860.0,3.4439674]
[1771815434920,3.41722744,1860.9,1860.2,3.4439674]
[1771815436930,3.63106494,1861.0,1860.4,3.47419367]
[1771815437226,0.00401251,1861.0,1860.4,3.47419367]
[1771815437730,3.63106494,1861.0,1860.4,3.47419367]
[1771815438025,3.63106494,1861.0,1859.9,3.95484006]
[1771815438026,3.63106494,1861.0,1860.2,3.47419367]
[1771815438224,3.62705243,1860.9,1860.2,3.47419367]
[1771815441232,3.62705243,1860.9,1860.2,3.48419367]
[1771815441531,0.00401251,1861.0,1860.2,3.48419367]
[1771815441532,3.63106494,1861.0,1860.2,3.48419367]
[1771815442124,0.00401251,1861.0,1860.2,3.48419367]
[1771815442537,3.62705243,1862.3,1861.2,0.55438446]
[1771815442726,3.62705243,1862.3,1861.4,0.55438446]
[1771815443131,3.62705243,1863.3,1861.9,0.55825627]
[1771815443428,3.62705243,1863.3,1862.1,0.55773199]
[1771815443429,3.62705243,1863.2,1862.1,0.55773199]
[1771815443626,3.62705243,1863.2,1862.0,6.88873199]
[1771815443831,3.62705243,1862.8,1862.0,6.88873199]
[1771815444034,3.62705243,1862.8,1862.1,0.55773199]
[1771815444236,4.4574866,1862.7,1862.0,6.331]
[1771815444433,3.62705243,1862.6,1862.0,6.331]
[1771815444835,3.62705243,1862.2,1862.0,6.331]
[1771815445332,6.8723,1863.2,1861.7,0.57628839]
[1771815445333,8.08453903,1862.1,1861.7,0.57628839]
[1771815445534,3.62705243,1862.1,1861.7,0.57628839]
[1771815446034,3.62705243,1862.1,1860.9,8.3]
[1771815446035,3.62705243,1862.0,1860.9,8.3]
[1771815446336,3.62705243,1862.0,1861.1,0.57628839]
[1771815448340,3.62705243,1861.8,1860.9,0.52880533]
[1771815448536,3.63352978,1861.8,1860.9,0.52880533]
[1771815450435,3.62705243,1861.6,1860.9,0.00384518]
[1771815450838,3.62705243,1861.6,1860.9,0.54652869]
[1771815452535,3.63352978,1861.8,1860.9,0.43930733]
[1771815453540,3.63352978,1861.8,1860.9,0.44399073]
[1771815457344,3.62705243,1861.6,1860.9,0.44399073]
[1771815457939,3.62705243,1861.4,1860.9,0.44399073]
[1771815458140,3.62705243,1861.4,1860.9,0.0046834]
[1771815458347,8.08453903,1861.4,1860.9,0.0046834]
[1771815458541,3.40574338,1861.3,1860.9,0.0046834]
[1771815458744,0.00647735,1861.8,1860.7,0.98266962]
[1771815458745,3.7057726,1861.7,1860.7,0.382]
[1771815458944,3.7057726,1861.5,1860.7,0.382]
[1771815459147,3.7057726,1861.5,1860.7,0.38576673]
[1771815459446,3.70604385,1861.3,1860.5,0.00322424]
[1771815459651,3.70604385,1861.3,1860.5,0.00784227]
[1771815460447,3.70604385,1861.3,1860.6,0.01754279]
[1771815460649,3.70074531,1861.1,1860.6,0.01754279]
[1771815460848,3.70074531,1861.1,1860.5,0.02216082]
[1771815461252,3.70074531,1861.1,1860.6,0.02077275]
[1771815461750,3.70074531,1861.1,1860.5,0.02539078]
[1771815462752,3.6747485,1861.6,1860.5,0.02539078]
[1771815463749,3.67495404,1861.5,1860.5,0.02539078]
[1771815465954,3.67978495,1861.4,1860.5,0.02539078]
[1771815469261,3.6848709,1861.3,1860.5,0.02539078]
[1771815469659,3.6848709,1861.3,1860.6,0.08099627]
[1771815469853,3.6848709,1861.7,1860.8,0.08099627]
[1771815470065,3.6848709,1861.6,1860.8,0.08099627]
[1771815471164,8.1423575,1861.6,1860.8,0.08099627]
[1771815471461,3.67843546,1862.1,1861.4,0.10041992]
[1771815471865,3.67843546,1862.1,1861.3,0.36911992]
[1771815472065,3.67843546,1861.7,1861.3,0.36911992]
[1771815472367,3.67843546,1861.7,1860.9,0.10364477]
[1771815472568,3.6827083,1861.7,1860.9,0.10364477]
[1771815472865,0.26848,1862.9,1861.1,0.10578369]
[1771815472866,3.67522958,1862.2,1861.1,0.10578369]
[1771815473364,3.67522958,1862.2,1861.3,0.10863009]
[1771815473562,3.67754754,1862.0,1861.3,0.10863009]
[1771815473763,3.68313929,1862.0,1861.3,0.10863009]
[1771815473969,7.60591614,1861.9,1861.3,0.10863009]
[1771815474268,3.6998038,1861.8,1861.3,0.10863009]
[1771815474570,3.6998038,1861.7,1861.3,0.10863009]
[1771815474965,3.9283686,1861.6,1861.3,0.10863009]
[1771815475872,3.9283686,1861.5,1861.3,0.10863009]
[1771815476172,3.6998038,1861.7,1861.3,0.10863009]
[1771815476367,0.00559175,1862.0,1861.2,0.26872]
[1771815476368,3.72695592,1861.5,1861.2,0.28787415]
[1771815476575,3.72695592,1861.5,1860.8,8.3]
[1771815477168,3.72695592,1861.5,1860.9,0.00314193]
[1771815477776,7.65532452,1861.5,1860.9,0.00314193]
[1771815478070,3.9283686,1861.4,1860.9,0.00314193]
[1771815478271,7.66509986,1861.4,1860.9,0.00314193]
[1771815478472,3.73673126,1861.4,1860.9,0.00314193]
[1771815478672,3.9283686,1861.3,1860.9,0.00314193]
[1771815478972,3.73673126,1861.4,1860.9,0.00314193]
[1771815480676,3.18599126,1861.4,1860.9,0.00314193]
[1771815480974,3.39835345,1861.9,1860.9,0.00314193]
[1771815482373,3.39835345,1861.9,1861.1,3.62839434]
[1771815484474,3.4039452,1862.0,1861.1,3.62839434]
[1771815485176,3.4039452,1862.0,1861.3,3.62839434]
[1771815489676,3.4039452,1862.0,1861.1,0.382]
[1771815490069,3.4039452,1862.0,1860.9,3.89972419]
[1771815491478,3.4039452,1862.0,1860.7,3.89972419]
[1771815495281,3.4039452,1862.0,1860.6,3.89972419]
[1771815495481,3.4039452,1862.0,1860.7,0.01]
[1771815499080,3.83663408,1861.8,1860.7,0.01]
[1771815501485,3.83663408,1861.2,1859.9,3.84645844]
[1771815502090,3.83663408,1861.2,1859.6,3.84645844]
[1771815502492,3.83663408,1861.2,1859.6,3.85139513]
[1771815502789,3.83663408,1861.2,1859.8,3.84645844]
[1771815502993,3.83663408,1861.2,1860.0,3.84645844]
[1771815504888,3.83663408,1861.2,1860.2,3.84645844]
[1771815505192,3.83663408,1861.2,1860.4,3.84645844]
[1771815505594,3.83663408,1861.9,1860.4,3.84645844]
[1771815505790,3.83663408,1861.9,1860.6,3.84645844]
[1771815506294,3.83663408,1861.9,1860.8,3.84645844]
[1771815507594,3.83663408,1861.9,1861.0,3.84645844]
[1771815507797,3.83663408,1861.9,1861.0,3.85215592]
[1771815509287,3.83663408,1861.8,1861.0,3.85215592]
[1771815509492,3.83663408,1861.8,1861.0,0.00569748]
[1771815509793,3.83663408,1861.5,1861.0,0.00569748]
[1771815510295,6.52383408,1861.5,1861.0,0.00569748]
[1771815510491,3.83663408,1861.4,1861.0,0.00569748]
[1771815511298,3.83663408,1861.2,1860.4,3.84645844]
[1771815512196,3.83663408,1861.2,1860.4,3.85220546]
[1771815512496,3.83663408,1861.9,1860.6,3.84645844]
[1771815513297,3.83663408,1861.7,1860.6,3.84645844]
[1771815513596,6.52383408,1861.7,1860.6,3.84645844]
[1771815513794,3.83663408,1861.6,1860.6,3.84645844]
[1771815514692,3.83663408,1861.4,1860.6,3.84645844]
[1771815517400,3.83663408,1861.3,1860.5,3.84645844]
[1771815517799,6.52383408,1861.3,1860.5,3.84645844]
[1771815518000,3.83663408,1861.2,1860.5,3.84645844]
[1771815518403,3.77940144,1861.1,1860.5,3.84645844]
[1771815519797,6.46660144,1861.1,1860.5,3.84645844]
[1771815520002,3.77940144,1861.0,1860.5,3.84645844]
[1771815521206,3.77940144,1860.9,1860.5,3.84645844]
[1771815523206,3.77940144,1861.9,1860.5,3.84645844]
[1771815523403,3.77940144,1861.4,1860.5,3.84645844]
[1771815523803,2.6872,1861.2,1860.5,3.84645844]
[1771815524007,3.77940144,1861.1,1860.5,3.84645844]
[1771815524208,3.77940144,1861.6,1860.8,3.7744629]
[1771815525707,0.00559175,1862.0,1860.8,3.7744629]
[1771815525708,3.77940144,1861.8,1860.8,3.7744629]
[1771815526209,3.78499319,1862.0,1861.2,3.7744629]
[1771815526606,3.77940144,1861.9,1861.2,3.7744629]
[1771815527008,6.46660144,1861.8,1861.2,3.7744629]
[1771815527211,3.78499319,1862.0,1861.2,3.7744629]
[1771815528309,6.47219319,1862.0,1861.2,3.7744629]
[1771815528608,3.77940144,1861.9,1861.2,3.7744629]
[1771815530809,2.6872,1861.9,1861.2,3.7744629]
[1771815531110,6.467,1862.8,1861.2,3.7744629]
[1771815531111,3.77940144,1862.1,1861.2,3.7744629]
[1771815532004,3.77940144,1862.4,1861.6,3.7744629]
[1771815532403,3.77940144,1862.4,1861.3,13.15042874]
[1771815532404,3.77940144,1862.4,1861.4,3.7744629]
[1771815532811,3.77940144,1862.0,1861.4,3.7744629]
[1771815533009,3.78457609,1862.0,1861.4,3.7744629]
[1771815533411,3.77940144,1861.8,1861.4,3.7744629]
[1771815533809,2.6872,1861.7,1861.4,3.7744629]
[1771815534111,3.77940144,1861.9,1861.2,3.7744629]
[1771815534311,3.77940144,1861.8,1861.2,3.7744629]
[1771815534908,2.6872,1861.7,1861.2,3.7744629]
[1771815535106,6.46660144,1861.7,1861.2,3.7744629]
[1771815535309,2.6872,1861.6,1861.2,3.7744629]
[1771815535710,3.77940144,1861.7,1861.2,3.7744629]
[1771815536009,2.6872,1861.6,1861.2,3.7744629]
[1771815536413,2.6872,1861.5,1861.2,3.7744629]
[1771815536610,3.77940144,1861.9,1861.2,3.7744629]
[1771815536810,2.6872,1861.7,1861.2,3.7744629]
[1771815537011,3.77940144,1861.8,1861.2,3.7744629]
[1771815537416,2.6872,1861.6,1861.2,3.7744629]
[1771815537718,3.77940144,1862.6,1861.6,3.7744629]
[1771815537912,3.77940144,1862.6,1861.4,3.7744629]
[1771815538720,3.78539072,1862.6,1861.4,3.7744629]
[1771815543515,3.78539072,1862.6,1861.4,3.7844629]
[1771815547521,3.78539072,1862.6,1861.6,3.7744629]
[1771815547821,3.77940144,1862.7,1862.0,3.7744629]
[1771815548520,3.84416684,1863.3,1862.0,3.7744629]
[1771815548717,3.8508159,1863.3,1862.0,3.77974236]
[1771815557728,3.8508159,1863.3,1862.4,4.23262339]
[1771815558533,3.8508159,1863.3,1862.1,4.23262339]
[1771815574433,3.8508159,1863.3,1862.0,0.00527946]
[1771815574434,4.86604197,1863.2,1862.0,0.00527946]
[1771815574634,4.01669667,1863.0,1862.0,4.23790285]
[1771815574831,4.01669667,1863.0,1862.0,0.00527946]
[1771815576742,4.01669667,1863.0,1862.0,4.23790285]
[1771815585951,4.37348599,1863.2,1862.5,4.10377185]
[1771815586950,4.37348599,1863.2,1862.2,4.10377185]
[1771815589854,4.37348599,1863.2,1862.1,4.10377185]
[1771815591049,4.37348599,1863.2,1862.0,4.10905131]
[1771815592055,4.37348599,1863.0,1862.0,4.10905131]
[1771815592857,4.37348599,1863.0,1861.8,4.10377185]
[1771815592858,4.37348599,1862.9,1861.8,4.10377185]
[1771815593854,4.37348599,1862.9,1861.8,4.10927634]
[1771815597056,4.37348599,1862.8,1861.8,4.10927634]
[1771815598055,4.37348599,1862.7,1861.8,4.10927634]
[1771815600359,4.37348599,1862.9,1861.8,4.10927634]
[1771815601364,4.37348599,1862.6,1861.8,0.00550449]
[1771815601558,4.37348599,1862.6,1861.8,4.10927634]
[1771815605964,4.37348599,1862.7,1861.8,4.10927634]
[1771815606165,4.37348599,1863.2,1861.8,4.10927634]
[1771815607665,0.58115576,1863.1,1861.8,4.10927634]
[1771815607962,4.37348599,1863.0,1861.8,4.10927634]
[1771815608463,4.37348599,1863.0,1861.8,4.08959165]
[1771815609566,4.37348599,1863.0,1861.8,4.09547951]
[1771815610154,4.37348599,1863.0,1862.3,4.37982553]
[1771815611360,4.37348599,1863.0,1861.9,4.37982553]
[1771815614561,6.467,1863.2,1862.0,4.37982553]
[1771815614762,0.00664906,1863.3,1862.3,4.37982553]
[1771815614967,4.29580844,1863.3,1862.3,4.37982553]
[1771815615468,0.00664906,1863.3,1862.5,4.37982553]
[1771815617360,4.12798264,1863.3,1862.5,4.37982553]
[1771815617764,0.00664906,1863.3,1862.5,4.37982553]
[1771815618668,4.12798264,1863.3,1862.5,4.37982553]
[1771815633173,0.00664906,1863.3,1862.5,4.37982553]
[1771815633375,0.00664906,1863.3,1863.0,4.29255981]
[1771815633573,4.12133358,1863.5,1863.0,4.29255981]
[1771815634576,4.12781503,1863.5,1863.0,4.29255981]
[1771815637876,4.12781503,1863.5,1863.0,4.30255981]
[1771815640772,4.12781503,1863.5,1862.4,4.27307047]
[1771815640978,4.12781503,1863.5,1862.5,4.27307047]
[1771815641182,4.12781503,1863.5,1862.9,4.27307047]
[1771815642578,4.12781503,1863.5,1862.7,4.27307047]
[1771815646079,4.12781503,1863.5,1861.9,23.29429239]
[1771815646080,4.31436364,1863.1,1862.5,4.27307047]
[1771815646784,4.31436364,1863.1,1862.3,4.27307047]
[1771815647879,4.31436364,1863.1,1862.5,4.27307047]
[1771815648077,4.31436364,1863.1,1862.7,4.27307047]
[1771815649277,6.467,1863.4,1862.9,4.27307047]
[1771815649587,4.32084509,1863.5,1863.1,4.27307047]
[1771815651682,4.32084509,1863.5,1862.9,4.27307047]
[1771815652488,4.32084509,1863.5,1862.7,4.27307047]
[1771815653288,4.31436364,1863.3,1862.7,4.27307047]
[1771815654988,4.31436364,1863.3,1862.3,4.27307047]
[1771815658594,4.31436364,1863.1,1862.3,4.27307047]
[1771815660290,4.31436364,1862.9,1862.3,4.27307047]
[1771815662394,4.31436364,1862.9,1862.1,4.27307047]
[1771815663292,4.31436364,1862.7,1862.1,4.27307047]
[1771815663591,4.31436364,1862.7,1861.9,4.27307047]
[1771815663793,4.31436364,1862.4,1861.8,4.27895833]
[1771815666098,4.31436364,1862.7,1861.8,4.27895833]
[1771815667595,4.31436364,1862.6,1861.8,4.27895833]
[1771815676297,4.20399687,1862.6,1861.8,4.27895833]
[1771815679199,4.15254735,1863.1,1861.8,4.27895833]
[1771815680412,4.12006608,1863.3,1861.8,4.27895833]
[1771815680604,4.12006608,1863.3,1862.0,3.97196706]
[1771815681910,4.09602381,1863.5,1862.0,4.24056706]
[1771815684518,4.09602381,1863.5,1862.0,3.97196706]
[1771815687516,4.02098772,1863.3,1862.0,3.97196706]
[1771815691611,3.91592598,1863.1,1861.8,3.97785492]
[1771815691916,3.91592598,1862.9,1861.8,3.97785492]
[1771815694214,3.91592598,1862.9,1861.8,3.98785492]
[1771815697514,3.62058058,1862.7,1861.8,3.98785492]
[1771815699310,3.50524314,1863.1,1861.8,3.98785492]
[1771815701920,3.35833157,1862.8,1862.0,3.59024875]
[1771815702619,3.29577415,1862.6,1862.0,3.59024875]
[1771815703318,3.27209135,1863.1,1862.0,3.59024875]
[1771815710919,3.12654277,1863.4,1862.0,3.59024875]
[1771815715226,0.00648145,1863.5,1862.6,3.59024875]
[1771815715422,3.02814148,1863.8,1862.6,3.59024875]
[1771815716526,3.03331764,1863.8,1862.6,3.59024875]
[1771815717029,3.00343028,1863.6,1862.4,3.59024875]
[1771815717629,2.9827453,1863.4,1862.3,3.59024875]
[1771815724423,2.8287325,1863.6,1862.3,3.59024875]
[1771815724624,2.8287325,1863.6,1862.5,3.59024875]
[1771815739447,2.49205742,1863.8,1862.5,3.59024875]
[1771815741346,2.49205742,1863.8,1862.5,3.60024875]
[1771815745136,2.51714267,1863.6,1862.5,3.60024875]
[1771815745336,2.51714267,1863.4,1862.5,3.60024875]